bitfinex/quotes_SOLUSD_20251223
["timestamp","ask_amount","ask_price","bid_price","bid_amount"]
[1766515927398,8.78725551,123.96,123.93,2.96479773]
[1766515930528,8.06647749,123.97,123.94,3.37479773]
[1766515931191,23.4960903,123.98,123.94,3.37479773]
[1766515931592,22.8060903,123.98,123.94,3.37479773]
[1766515931911,0.69,123.97,123.94,3.37479773]
[1766515932292,0.69,123.97,123.94,0.41]
[1766515932490,0.69,123.97,123.94,3.37479773]
[1766515932925,0.69,123.97,123.94,0.41]
[1766515933129,0.69,123.97,123.94,3.37479773]
[1766515933793,8.75650403,123.97,123.94,2.96479773]
[1766515934323,0.69,123.97,123.94,2.96479773]
[1766515935534,0.69,123.97,123.94,11.033169]
[1766515938322,0.69,123.98,123.95,2.96479773]
[1766515938506,15.43,123.98,123.95,2.96479773]
[1766515939646,15.43,123.98,123.95,11.03236048]
[1766515944725,0.69,123.97,123.94,2.96479773]
[1766515945227,8.06386581,124.01,123.97,0.41]
[1766515945416,0.69,124.01,123.99,2.96479773]
[1766515945596,8.75261471,124.03,123.99,3.37479773]
[1766515945804,14.74,124.02,123.99,3.37479773]
[1766515946199,15.43,124.02,123.99,3.37479773]
[1766515946803,23.49333809,124.02,123.99,2.96479773]
[1766515947003,0.69,124.01,123.99,2.96479773]
[1766515948130,0.69,124.0,123.97,2.96479773]
[1766515948301,15.41,124.0,123.97,2.96479773]
[1766515950820,15.41,124.0,123.97,3.37479773]
[1766515951123,0.69,124.02,123.99,2.96479773]
[1766515951330,14.72,124.01,123.99,2.96479773]
[1766515952536,14.72,124.01,123.99,11.02972288]
[1766515953727,0.69,124.02,123.99,11.02972288]
[1766515953911,14.72,124.03,124.01,2.96479773]
[1766515954119,14.72,124.03,124.0,3.37479773]
[1766515954305,15.4,124.03,124.0,3.37479773]
[1766515955005,15.4,124.03,124.0,2.96479773]
[1766515956628,0.68,124.02,123.99,11.43972288]
[1766515956823,15.4,124.02,123.99,11.43972288]
[1766515957308,15.38,124.02,123.99,11.02972288]
[1766515957622,0.66,124.01,123.98,11.03040039]
[1766515959632,0.66,124.01,123.99,2.96479773]
[1766515960016,14.72,124.02,123.99,2.96479773]
[1766515960217,0.66,124.01,123.99,2.96479773]
[1766515960933,14.72,124.02,124.0,3.37479773]
[1766515961630,15.38,124.02,124.0,2.96479773]
[1766515961833,0.66,124.02,124.0,2.96479773]
[1766515962720,0.66,124.02,123.99,11.02986935]
[1766515962917,3.62479773,124.02,123.97,18.91391273]
[1766515963131,0.66,124.01,123.97,21.46871046]
[1766515963322,0.66,124.0,123.98,2.96479773]
[1766515963637,0.66,124.0,123.97,18.50391273]
[1766515963824,0.66,124.0,123.98,2.96479773]
[1766515966740,0.66,124.04,123.99,2.96479773]
[1766515966930,0.66,124.02,124.0,2.96479773]
[1766515967238,0.66,124.02,123.98,9.28218989]
[1766515967441,0.66,124.02,123.98,11.44040592]
[1766515969448,0.66,124.02,123.99,2.96479773]
[1766515969836,8.06342164,124.02,123.97,18.50393502]
[1766515970038,0.66,124.01,123.97,21.46873275]
[1766515971245,14.72,124.0,123.96,11.03155758]
[1766515971449,0.66,123.98,123.95,2.96479773]
[1766515971646,0.66,123.98,123.94,21.88062231]
[1766515972754,0.66,123.98,123.94,13.40247069]
[1766515972935,0.66,123.95,123.91,8.06980632]
[1766515973123,0.66,123.95,123.9,0.41]
[1766515973323,0.66,123.95,123.92,10.43767296]
[1766515973528,0.66,123.93,123.89,2.96479773]
[1766515973727,0.66,123.93,123.9,10.43767296]
[1766515973928,0.66,123.93,123.89,11.03607662]
[1766515976151,0.66,123.93,123.9,2.96479773]
[1766515977761,0.66,123.92,123.89,11.03607662]
[1766515978060,0.66,123.92,123.89,9.96903431]
[1766515978429,0.66,123.92,123.89,1.89775542]
[1766515978845,0.66,123.92,123.88,10.43767296]
[1766515979062,0.66,123.92,123.89,1.89775542]
[1766515979356,8.72979235,123.92,123.88,12.33542838]
[1766515979546,0.66,123.91,123.88,10.43767296]
[1766515979751,1.89775542,123.9,123.85,10.38164435]
[1766515979955,1.89775542,123.9,123.85,20.81931731]
[1766515979956,0.66,123.89,123.85,20.81931731]
[1766515980155,0.66,123.89,123.85,18.92156189]
[1766515980459,0.66,123.88,123.85,12.33542838]
[1766515980658,8.0717595,123.89,123.82,1.89775542]
[1766515980659,0.66,123.86,123.82,1.89775542]
[1766515981232,0.66,123.86,123.82,12.33542838]
[1766515982052,0.66,123.86,123.82,20.41159895]
[1766515982226,14.74,123.87,123.84,1.89775542]
[1766515983056,0.66,123.88,123.84,1.89775542]
[1766515983266,0.66,123.88,123.85,1.89775542]
[1766515984153,15.4,123.89,123.85,10.38199378]
[1766515987354,0.65,123.91,123.88,1.89775542]
[1766515987659,15.39,123.91,123.88,1.89775542]
[1766515988039,23.46037694,123.91,123.88,1.89775542]
[1766515988241,23.46037694,123.91,123.87,2.30775542]
[1766515990862,25.35813236,123.91,123.87,2.30775542]
[1766515991065,17.28775542,123.91,123.87,10.38053732]
[1766515991833,25.35832877,123.91,123.87,2.30775542]
[1766515992058,23.46057335,123.91,123.87,2.30775542]
[1766515992248,25.35832877,123.91,123.87,2.30775542]
[1766515993071,15.39,123.91,123.87,10.38063745]
[1766515995366,14.74,123.91,123.87,10.38063745]
[1766515995543,15.39,123.91,123.87,10.38063745]
[1766515996048,23.46040975,123.91,123.87,10.38063745]
[1766515996249,0.65,123.9,123.87,10.38063745]
[1766515997339,0.65,123.9,123.88,1.89775542]
[1766515998279,0.65,123.9,123.87,1.89775542]
[1766515998641,0.65,123.89,123.86,1.89775542]
[1766515998953,0.65,123.89,123.85,12.33542838]
[1766515999459,0.65,123.87,123.85,10.43767296]
[1766516001561,0.65,123.87,123.85,12.33542838]
[1766516005269,0.65,123.87,123.85,10.43767296]
[1766516005468,0.65,123.87,123.85,12.33542838]
[1766516009266,0.65,123.87,123.85,10.43767296]
[1766516010167,9.96908336,123.9,123.85,20.40932762]
[1766516010371,0.65,123.88,123.86,1.89775542]
[1766516011144,0.65,123.88,123.85,20.81932762]
[1766516022291,0.72,123.95,123.86,0.41]
[1766516022479,0.72,123.95,123.91,0.41]
[1766516022674,0.72,123.95,123.92,1.89775542]
[1766516023361,0.72,123.95,123.93,1.89775542]
[1766516023562,0.72,123.98,123.94,1.89775542]
[1766516023763,15.46,123.97,123.94,1.89775542]
[1766516023990,0.72,123.96,123.94,1.89775542]
[1766516024372,0.72,123.96,123.93,9.96671331]
[1766516024890,0.72,123.96,123.93,1.89775542]
[1766516025381,0.72,123.96,123.93,9.96671179]
[1766516027089,0.72,123.95,123.91,23.61727212]
[1766516027282,0.72,123.95,123.92,10.43767296]
[1766516027993,0.72,123.94,123.92,10.43767296]
[1766516030197,0.72,123.94,123.92,12.33542838]
[1766516034204,0.72,123.94,123.92,10.43767296]
[1766516034995,1.89775542,123.93,123.87,0.80729797]
[1766516035186,1.89775542,123.93,123.9,8.07084189]
[1766516035187,0.72,123.93,123.9,8.07084189]
[1766516035395,0.72,123.93,123.9,9.96859731]
[1766516036088,0.72,123.92,123.88,2.59775542]
[1766516036287,0.72,123.92,123.89,9.9693124]
[1766516038092,0.72,123.92,123.89,11.03674305]
[1766516040003,0.72,123.92,123.89,2.96518607]
[1766516040308,0.72,123.9,123.88,10.43767296]
[1766516041001,0.72,123.9,123.87,8.07258883]
[1766516041206,0.72,123.9,123.87,11.0377749]
[1766516041409,0.72,123.9,123.88,2.96518607]
[1766516043404,0.72,123.9,123.87,3.66518607]
[1766516044786,0.72,123.9,123.87,2.96518607]
[1766516045014,0.72,123.9,123.86,22.17618579]
[1766516045396,0.72,123.9,123.87,8.07281556]
[1766516045791,0.72,123.9,123.86,22.17623596]
[1766516046894,0.71,123.89,123.86,22.17623596]
[1766516056301,0.71,123.89,123.86,3.66518607]
[1766516056498,0.71,123.89,123.86,22.17636327]
[1766516056703,0.71,123.89,123.87,10.43767296]
[1766516059018,0.71,123.87,123.83,3.65518607]
[1766516059316,0.71,123.87,123.84,3.65518607]
[1766516060107,0.71,123.87,123.84,11.72994881]
[1766516060299,0.71,123.87,123.84,8.07476274]
[1766516060595,0.71,123.87,123.84,11.03994881]
[1766516065020,0.71,123.87,123.84,8.07476274]
[1766516070526,0.71,123.87,123.84,8.76476274]
[1766516071437,0.71,123.87,123.84,11.72994881]
[1766516078548,0.71,123.87,123.84,8.76476274]
[1766516078836,0.71,123.87,123.84,11.72994881]
[1766516079938,8.07037365,123.91,123.84,28.26210124]
[1766516080117,0.72,123.89,123.86,3.65518607]
[1766516080316,0.72,123.89,123.86,2.96518607]
[1766516080636,0.72,123.89,123.86,3.65518607]
[1766516081440,0.72,123.89,123.86,0.69]
[1766516083238,0.72,123.88,123.85,11.72892597]
[1766516083426,8.79177935,123.89,123.86,0.69]
[1766516085739,0.72,123.87,123.85,10.43767296]
[1766516086743,8.07303794,123.87,123.83,19.20320311]
[1766516086949,0.72,123.86,123.83,19.20320311]
[1766516088552,0.72,123.86,123.83,22.16838918]
[1766516091057,0.72,123.86,123.83,19.20320311]
[1766516091357,0.72,123.86,123.83,22.16838918]
[1766516096241,0.72,123.86,123.83,21.47838918]
[1766516096448,0.72,123.86,123.83,22.16838918]
[1766516096961,0.22,123.86,123.83,22.16838918]
[1766516097557,0.22,123.86,123.83,14.09285903]
[1766516098062,0.22,123.86,123.83,13.02733332]
[1766516098843,8.07392165,123.86,123.81,8.07688058]
[1766516099047,16.63966036,123.85,123.8,0.69]
[1766516099359,0.72,123.84,123.81,13.02733332]
[1766516100143,0.72,123.84,123.82,1.89966036]
[1766516101370,0.72,123.84,123.81,21.10413698]
[1766516103166,22.81432999,123.85,123.82,0.69]
[1766516103362,23.53432999,123.85,123.82,0.69]
[1766516104160,0.72,123.84,123.82,0.69]
[1766516107366,23.51432999,123.85,123.82,0.69]
[1766516107664,14.74,123.85,123.82,0.69]
[1766516107874,15.44,123.85,123.83,0.72]
[1766516108950,14.74,123.85,123.83,0.72]
[1766516109843,14.74,123.85,123.84,0.72]
[1766516111544,0.7,123.86,123.84,0.72]
[1766516111745,15.44,123.86,123.84,0.72]
[1766516119973,14.74,123.86,123.84,0.72]
[1766516120165,15.44,123.86,123.84,0.72]
[1766516120468,15.44,123.86,123.83,1.89966036]
[1766516120672,15.44,123.86,123.83,2.61966036]
[1766516126275,8.77167648,123.89,123.85,2.61966036]
[1766516126465,15.44,123.88,123.85,2.61966036]
[1766516126660,14.74,123.88,123.85,0.72]
[1766516126865,0.7,123.87,123.85,0.72]
[1766516127060,14.74,123.88,123.86,0.72]
[1766516127255,15.44,123.88,123.86,0.72]
[1766516127657,14.74,123.88,123.86,0.72]
[1766516128759,15.44,123.88,123.85,2.61966036]
[1766516130080,0.7,123.88,123.85,2.61966036]
[1766516130269,15.44,123.88,123.85,2.61966036]
[1766516131367,8.77235306,123.88,123.85,2.61966036]
[1766516131572,23.51235306,123.88,123.85,2.61966036]
[1766516132984,15.44,123.88,123.85,2.61966036]
[1766516139465,15.44,123.88,123.86,1.89966036]
[1766516139887,15.44,123.88,123.85,2.61966036]
[1766516140273,0.7,123.88,123.85,2.61966036]
[1766516140574,15.44,123.88,123.85,2.61966036]
[1766516140990,15.44,123.88,123.85,0.72]
[1766516141166,15.44,123.88,123.85,2.61966036]
[1766516141889,0.7,123.88,123.85,2.61966036]
[1766516142080,15.44,123.88,123.85,2.61966036]
[1766516149095,14.74,123.88,123.87,2.61966036]
[1766516149475,0.68,123.89,123.86,1.89966036]
[1766516149778,0.68,123.89,123.86,0.72]
[1766516149986,0.68,123.89,123.86,2.61966036]
[1766516151815,0.68,123.89,123.86,0.72]
[1766516152097,0.68,123.87,123.85,0.72]
[1766516154179,0.68,123.87,123.84,13.05733332]
[1766516154380,0.68,123.87,123.84,11.15767296]
[1766516155203,14.74,123.86,123.82,10.69566088]
[1766516155499,0.68,123.85,123.82,8.79600052]
[1766516155700,0.68,123.85,123.83,0.72]
[1766516157582,0.68,123.85,123.81,11.15767296]
[1766516157782,14.74,123.89,123.85,0.72]
[1766516158003,0.68,123.88,123.85,2.61966036]
[1766516158302,14.74,123.89,123.86,2.61966036]
[1766516158615,15.42,123.89,123.86,2.61966036]
[1766516158981,15.42,123.89,123.87,1.89966036]
[1766516158982,14.74,123.89,123.87,1.89966036]
[1766516159183,0.68,123.92,123.89,0.72]
[1766516159381,15.42,123.93,123.91,1.89966036]
[1766516159590,1.89966036,123.96,123.91,2.61966036]
[1766516159889,0.68,123.93,123.9,13.05733332]
[1766516160095,0.68,123.93,123.9,11.15767296]
[1766516160401,0.68,123.93,123.9,10.43767296]
[1766516160895,0.68,123.92,123.9,10.43767296]
[1766516161084,15.42,123.92,123.9,10.43767296]
[1766516161886,0.68,123.91,123.87,8.7893712]
[1766516162102,0.68,123.91,123.87,3.68511257]
[1766516162987,0.68,123.91,123.88,0.72]
[1766516163403,8.75045868,123.91,123.88,0.72]
[1766516165992,8.75045868,123.91,123.87,3.68511257]
[1766516173015,8.75045868,123.91,123.87,11.75807049]
[1766516174622,0.7,123.9,123.87,0.72]
[1766516177728,0.7,123.89,123.86,2.96511257]
[1766516177925,0.7,123.89,123.85,8.07400637]
[1766516178123,0.7,123.88,123.85,8.77400637]
[1766516178315,0.7,123.88,123.85,11.73911894]
[1766516181828,0.7,123.88,123.85,11.03911894]
[1766516182034,0.7,123.88,123.85,11.73911894]
[1766516182412,0.7,123.88,123.85,8.77400637]
[1766516182612,0.7,123.87,123.85,0.7]
[1766516183539,0.7,123.87,123.83,10.43767296]
[1766516183540,0.7,123.86,123.83,0.7]
[1766516183740,0.7,123.85,123.82,2.96511257]
[1766516183916,0.7,123.85,123.82,3.66511257]
[1766516184119,14.74,123.86,123.83,2.96511257]
[1766516184319,15.44,123.86,123.83,3.66511257]
[1766516186814,15.44,123.86,123.84,2.96511257]
[1766516187014,23.51366988,123.86,123.84,2.96511257]
[1766516188137,23.47939495,123.86,123.84,2.96511257]
[1766516191333,15.40572507,123.86,123.84,2.96511257]
[1766516191510,15.40572507,123.86,123.83,8.77554355]
[1766516191716,15.40572507,123.86,123.84,2.96511257]
[1766516195845,15.40572507,123.86,123.83,0.7]
[1766516196137,15.40572507,123.86,123.84,2.96511257]
[1766516200147,15.40572507,123.86,123.84,3.65511257]
[1766516202949,15.40572507,123.86,123.84,0.69]
[1766516203149,15.40572507,123.86,123.84,3.65511257]
[1766516204858,15.40572507,123.86,123.84,0.69]
[1766516205052,0.7,123.86,123.84,3.65511257]
[1766516205250,15.44,123.86,123.84,3.65511257]
[1766516205647,14.74,123.86,123.85,3.65511257]
[1766516205855,8.07591714,123.9,123.86,0.69]
[1766516206031,15.45,123.91,123.85,13.40278553]
[1766516206235,15.45,123.91,123.88,2.96511257]
[1766516206236,0.71,123.9,123.88,2.96511257]
[1766516207038,8.78119755,123.9,123.88,2.96511257]
[1766516209461,8.07119755,123.9,123.88,2.96511257]
[1766516209629,0.71,123.92,123.89,2.96511257]
[1766516209832,0.71,123.92,123.85,14.21021387]
[1766516209833,14.74,123.92,123.91,3.65511257]
[1766516210060,8.7786668,123.94,123.91,3.65511257]
[1766516210263,0.71,123.94,123.92,2.96511257]
[1766516210430,22.80742247,123.96,123.93,2.96511257]
[1766516210630,23.51742247,123.96,123.93,3.65511257]
[1766516210836,22.80742247,123.96,123.93,3.65511257]
[1766516211051,0.71,123.95,123.91,0.69]
[1766516211264,0.71,123.95,123.93,2.96511257]
[1766516215956,0.71,123.95,123.93,3.65511257]
[1766516221954,0.71,123.95,123.93,2.58674826]
[1766516223264,14.74,123.96,123.94,2.58674826]
[1766516223459,22.80714785,123.96,123.94,2.58674826]
[1766516223665,22.80714785,123.96,123.93,2.58674826]
[1766516223666,23.51714785,123.96,123.93,2.58674826]
[1766516225173,23.51714785,123.96,123.91,8.07008294]
[1766516225174,0.1,123.99,123.95,3.79349652]
[1766516225369,0.71,124.0,123.98,1.89674826]
[1766516225547,0.71,124.0,123.97,0.69]
[1766516225746,8.77464893,124.0,123.97,0.69]
[1766516226253,8.77464893,124.0,123.97,2.58674826]
[1766516226569,8.77464893,124.0,123.97,0.69]
[1766516226763,0.71,123.98,123.94,0.69]
[1766516226963,0.71,123.98,123.94,2.58674826]
[1766516227170,8.06582347,123.98,123.94,2.58674826]
[1766516227348,8.77582347,123.98,123.94,2.58674826]
[1766516227549,8.77582347,123.98,123.95,2.56674826]
[1766516230919,8.77533589,123.99,123.96,2.56674826]
[1766516231452,0.71,123.98,123.96,2.56674826]
[1766516232391,8.7758442,123.98,123.96,2.56674826]
[1766516232548,8.7758442,123.98,123.95,2.56674826]
[1766516233372,0.71,123.99,123.97,2.56674826]
[1766516233564,0.71,123.99,123.97,1.89674826]
[1766516233942,23.51477528,124.0,123.97,2.56674826]
[1766516234567,0.71,123.99,123.97,1.89674826]
[1766516234764,0.71,123.99,123.96,2.56674826]
[1766516236884,8.77521505,123.99,123.96,2.56674826]
[1766516239471,0.71,123.99,123.96,1.89674826]
[1766516239676,0.71,123.99,123.97,2.56674826]
[1766516240183,0.71,123.99,123.97,0.67]
[1766516240482,0.71,123.98,123.95,0.67]
[1766516240677,0.71,123.98,123.94,1.89674826]
[1766516240877,0.71,123.98,123.95,0.67]
[1766516241276,0.71,123.98,123.95,2.56674826]
[1766516242276,8.77608665,123.98,123.95,2.56674826]
[1766516242476,8.06608665,123.98,123.96,0.67]
[1766516243070,8.77541507,123.99,123.96,2.56674826]
[1766516246493,8.77541507,123.99,123.96,0.67]
[1766516252893,28.93833143,123.99,123.96,0.67]
[1766516254070,8.77541507,123.99,123.96,0.67]
[1766516254293,8.77541507,123.99,123.96,2.56674826]
[1766516258601,8.06541507,123.99,123.96,0.67]
[1766516258808,8.74589369,123.98,123.96,0.67]
[1766516259290,8.74589369,123.98,123.95,2.56674826]
[1766516260504,8.74589369,123.98,123.96,0.67]
[1766516263114,0.68,123.97,123.94,2.56674826]
[1766516263603,0.68,123.97,123.95,2.56674826]
[1766516264181,8.0652458,123.99,123.97,0.67]
[1766516264409,8.7452458,123.99,123.96,2.56674826]
[1766516267024,0.68,123.98,123.96,0.67]
[1766516269011,8.74596029,123.98,123.95,0.67]
[1766516269505,8.74547053,123.99,123.96,0.67]
[1766516270109,8.74547053,123.99,123.96,2.56674826]
[1766516270806,8.74547053,123.99,123.95,0.67]
[1766516271008,8.74547053,123.99,123.94,8.06811167]
[1766516271009,8.74547053,123.99,123.96,2.56674826]
[1766516271194,8.74547053,123.99,123.97,0.67]
[1766516272109,8.74547053,123.99,123.96,1.89674826]
[1766516272415,8.74547053,123.99,123.96,2.56674826]
[1766516272598,8.74547053,123.99,123.96,0.67]
[1766516275613,0.68,123.98,123.94,0.67]
[1766516275790,0.68,123.98,123.95,0.67]
[1766516276694,0.68,123.97,123.93,0.67]
[1766516276898,0.68,123.97,123.94,2.56674826]
[1766516277509,0.68,123.97,123.94,0.67]
[1766516277701,0.68,123.97,123.94,2.56674826]
[1766516278815,8.74612293,123.98,123.95,0.67]
[1766516279427,0.68,123.97,123.95,0.67]
[1766516280814,0.68,123.97,123.94,2.56674826]
[1766516284019,0.68,123.97,123.94,3.6330629]
[1766516288018,23.43547878,123.99,123.96,0.7]
[1766516288609,8.06547878,123.99,123.94,8.06813198]
[1766516288804,0.65,123.98,123.95,0.7]
[1766516289203,0.65,123.98,123.95,3.6630629]
[1766516289506,0.65,123.98,123.95,2.9630629]
[1766516289715,0.65,123.98,123.95,11.73081233]
[1766516289908,0.65,123.98,123.96,2.9630629]
[1766516290109,0.1,124.01,123.98,0.7]
[1766516290311,0.1,124.01,123.95,25.75081233]
[1766516290312,33.19756552,124.04,124.0,2.9630629]
[1766516290514,0.75,124.04,124.01,3.6630629]
[1766516290711,0.75,124.04,124.02,3.6630629]
[1766516290712,0.1,124.04,124.02,3.6630629]
[1766516291105,0.1,124.04,124.02,0.7]
[1766516291309,0.1,124.04,124.02,3.6630629]
[1766516293822,0.1,124.04,124.03,3.6630629]
[1766516294809,0.1,124.05,124.03,2.9630629]
[1766516295006,0.75,124.07,124.05,0.7]
[1766516295007,0.1,124.07,124.05,0.7]
[1766516295229,0.1,124.07,124.05,3.6630629]
[1766516296636,0.1,124.07,124.06,0.7]
[1766516299832,0.1,124.07,124.06,3.6630629]
[1766516300755,8.60700415,124.09,124.06,3.6630629]
[1766516303860,8.60700415,124.09,124.06,0.7]
[1766516304025,8.60700415,124.09,124.06,3.6630629]
[1766516309565,8.80801772,124.1,124.07,0.7]
[1766516310042,0.65,124.09,124.06,3.6630629]
[1766516310235,0.65,124.08,124.04,0.7]
[1766516310435,0.65,124.08,124.05,3.6630629]
[1766516312240,8.7097206,124.08,124.05,3.6630629]
[1766516313948,8.7097206,124.08,124.05,2.96307508]
[1766516315149,8.7497206,124.08,124.05,2.96307508]
[1766516315927,8.7497206,124.08,124.05,3.07e-06]
[1766516316126,8.7497206,124.08,124.06,5.08e-06]
[1766516322740,3.6730629,124.07,124.03,23.1071749]
[1766516323053,0.71,124.04,124.0,3.6230629]
[1766516323261,0.71,124.04,124.02,2.9630629]
[1766516325656,8.06144178,124.05,124.02,3.6230629]
[1766516325862,8.77144178,124.05,124.02,3.6230629]
[1766516332265,8.06144178,124.05,124.02,0.66]
[1766516332473,8.06198819,124.04,124.02,3.6230629]
[1766516334181,0.71,124.04,124.01,2.9630629]
[1766516334392,0.71,124.04,124.0,2.9630629]
[1766516334556,0.71,124.04,124.0,3.6230629]
[1766516336195,8.7721909,124.04,124.01,0.66]
[1766516336485,8.7721909,124.04,124.01,3.6230629]
[1766516336863,0.71,124.03,124.01,3.6230629]
[1766516337570,0.71,124.03,124.01,2.9630629]
[1766516339782,8.77261292,124.03,124.0,3.6230629]
[1766516340784,0.71,124.02,123.98,3.6230629]
[1766516340983,2.9630629,124.02,123.97,0.66]
[1766516341295,0.71,124.01,123.98,3.6230629]
[1766516341864,0.71,124.01,123.98,2.9630629]
[1766516342488,8.06407834,124.01,123.98,2.9630629]
[1766516342674,0.71,124.0,123.98,2.9630629]
[1766516345985,8.77482543,124.0,123.97,0.66]
[1766516346191,8.77482543,124.0,123.96,17.27549371]
[1766516346192,0.71,123.99,123.96,17.27549371]
[1766516346394,0.71,123.99,123.97,1.89549371]
[1766516346891,0.7,124.01,123.98,2.60549371]
[1766516347279,0.7,124.01,123.98,1.89549371]
[1766516347791,0.7,124.0,123.97,2.60549371]
[1766516347996,0.7,124.01,123.98,2.60549371]
[1766516348294,8.06275496,124.03,123.99,0.71]
[1766516348491,8.06275496,124.03,123.98,8.06544628]
[1766516348492,8.76275496,124.03,124.0,1.89549371]
[1766516348673,8.76275496,124.03,124.0,2.60549371]
[1766516351504,28.2176151,124.04,124.0,1.89549371]
[1766516351696,0.7,124.03,124.0,2.60549371]
[1766516352269,1.89549371,124.03,123.98,2.60549371]
[1766516352474,0.7,124.02,123.99,2.60549371]
[1766516352886,0.7,124.02,123.99,0.71]
[1766516353086,0.7,124.02,123.99,2.60549371]
[1766516353603,22.0511933,124.04,123.99,1.89549371]
[1766516353775,8.76288384,124.03,124.0,0.71]
[1766516353979,0.7,124.02,123.99,2.60549371]
[1766516357305,0.7,124.02,123.99,0.71]
[1766516357600,0.7,124.02,124.0,1.89549371]
[1766516360496,0.7,124.04,124.01,2.60549371]
[1766516360697,103.4,124.05,124.02,0.71]
[1766516361000,0.7,124.04,124.02,0.71]
[1766516361506,0.7,124.04,124.01,2.60549371]
[1766516363080,8.06210296,124.04,124.01,1.89549371]
[1766516363280,0.7,124.03,124.0,2.60549371]
[1766516364990,0.48738869,124.03,124.0,2.60549371]
[1766516366211,8.06210296,124.04,124.01,1.89549371]
[1766516366413,8.06210296,124.04,124.01,2.60549371]
[1766516367009,8.76210296,124.04,124.01,2.60549371]
[1766516367806,0.7,124.03,124.01,2.60549371]
[1766516369113,0.7,124.03,124.01,0.71]
[1766516369315,0.7,124.03,124.01,2.60549371]
[1766516377122,0.7,124.03,124.01,1.89549371]
[1766516377325,0.7,124.03,124.0,0.66]
[1766516377534,0.7,124.03,124.01,1.89549371]
[1766516381524,0.7,124.03,124.01,2.55549371]
[1766516382895,0.7,124.03,124.01,0.66]
[1766516383424,8.76266302,124.03,124.01,0.66]
[1766516386122,8.76266302,124.03,124.0,2.55549371]
[1766516389021,8.06266302,124.03,124.0,2.55549371]
[1766516389231,0.67,124.02,124.0,1.89549371]
[1766516389407,0.67,124.02,123.99,0.66]
[1766516389608,0.67,124.02,123.99,2.55549371]
[1766516389808,8.73325209,124.02,123.99,2.55549371]
[1766516391228,0.67,124.02,123.97,39.58819043]
[1766516391417,0.67,124.01,123.97,17.27549371]
[1766516391808,0.67,124.01,123.97,25.34193221]
[1766516392603,0.67,124.01,123.98,2.55549371]
[1766516392808,42.93897927,124.03,124.0,0.66]
[1766516392809,23.4525655,124.03,124.0,0.66]
[1766516393011,8.7325655,124.03,124.0,2.55549371]
[1766516393417,0.67,124.03,124.0,2.55549371]
[1766516394424,0.67,124.03,124.0,0.66]
[1766516396437,8.06279461,124.03,124.0,0.66]
[1766516396614,0.67,124.02,124.0,0.66]
[1766516400217,0.67,124.02,123.99,0.66]
[1766516400434,0.67,124.02,124.0,0.66]
[1766516400844,0.67,124.02,124.0,2.55549371]
[1766516401049,8.06279461,124.03,124.0,2.55549371]
[1766516401236,8.73279461,124.03,124.01,1.89549371]
[1766516401640,111.43151293,124.05,124.02,1.89549371]
[1766516401836,1419.17351199,124.06,124.04,1.89549371]
[1766516402141,1418.94351199,124.06,124.05,1.89549371]
[1766516403342,1418.94351199,124.06,124.04,1.89549371]
[1766516405058,1418.94351199,124.06,124.04,9.95729991]
[1766516405239,1156.12258669,124.06,124.05,1.89549371]
[1766516405540,545.8550756,124.06,124.05,27.98551139]
[1766516405743,545.8550756,124.06,124.05,26.09001768]
[1766516405744,539.79310696,124.06,124.05,26.09001768]
[1766516406123,339.89276005,124.06,124.05,30.10883781]
[1766516406422,239.15672959,124.06,124.05,38.17010342]
[1766516406642,134.95697675,124.06,124.05,38.17010342]
[1766516407028,134.95697675,124.06,124.05,32.25578958]
[1766516407229,0.1,124.1,124.07,2.95715692]